Cogmind - Beta 15 *** ADVENTURER MODE // 2025.08.01 @ 07:38:14 Player: LegoMDS Result: Destroyed by ER-H5W(R) with Subdweller Beam Cannon Performance ------------- Evolutions (0) 0 Regions Visited (2) 400 Robots Destroyed (27) 135 Value Destroyed (801) 801 Prototype IDs (14) 280 Alien Tech Used (0) 0 Bonus (0) 0 TOTAL SCORE: 1616 Bonus ------- None Cogmind --------- Core Integrity 0/250 Matter 265/300 Energy 97/100 System Corruption 0% Temperature Cool (9) Movement Core (500) Ox9 Location -10/Subcaves Parts ------- > --- POWER (1) -------- (None) > --- PROPULSION (2) --- Subdweller Monowheel > --- UTILITY (2) ------ Large Storage Unit Makeshift Light Armor Plating > --- WEAPON (2) ------- Barrage Gun Makeshift Shrapnel Gun > --- INVENTORY (15) --- Subdweller Power Source Improved Heat Sink Subdweller Optics Scrap Shield Scrap Shield Tower Shield Subdweller Laser Subdweller Laser Subdweller Beam Cannon Subdweller Machine Gun Enhanced Flamer Mining Claw Peak State ------------ > --- POWER ------------ Makeshift Power Source > --- PROPULSION ------- Aluminum Leg Subdweller Monowheel > --- UTILITY ---------- Large Storage Unit Makeshift Light Armor Plating > --- WEAPON ----------- Barrage Gun Makeshift Shrapnel Gun > --- INVENTORY -------- Subdweller Power Source Improved Heat Sink Subdweller Optics Scrap Shield Scrap Shield Tower Shield Subdweller Laser Subdweller Machine Gun Enhanced Flamer Mining Claw [Rating: 23] Favorites ----------- Power Ion Engine Engine Ion Engine Propulsion Light Treads Treads Light Treads Leg Aluminum Leg Wheel Subdweller Monowheel Utility Large Storage Unit Storage Large Storage Unit Processor Targeting Computer Protection Makeshift Light Armor Plating Weapon Assault Rifle Energy Gun Medium Laser Ballistic Gun Assault Rifle Special Weapon Enhanced Flamer Slashing Weapon Mining Claw Build | -11 -10 -10 ------- Run | Yrd Mat Sub Slots Evolved . | . . . Power . | . . . Propulsion . | . . . Utility . | . . . Weapon . | . . . Parts Attached 27 | 6 5 16 Power 5 | 1 2 2 Engine 5 | 1 2 2 Core . | . . . Reactor . | . . . Propulsion 6 | 2 . 4 Treads 3 | 2 . 1 Leg 2 | . . 2 Wheel 1 | . . 1 Hover . | . . . Flight . | . . . Utility 5 | 1 2 2 Device . | . . . Storage 2 | 1 1 . Processor 1 | . . 1 Hackware . | . . . Protection 2 | . 1 1 Artifact . | . . . Weapon 11 | 2 1 8 Energy Gun 1 | 1 . . Energy Cannon . | . . . Ballistic Gun 8 | 1 1 6 Ballistic Cannon . | . . . Launcher . | . . . Special Weapon 1 | . . 1 Impact Weapon . | . . . Slashing Weapon 1 | . . 1 Piercing Weapon . | . . . Special Melee Weapon . | . . . Unidentified Prototypes . | . . . Parts Lost 9 | . 1 8 Power 2 | . 1 1 Propulsion 4 | . . 4 Utility 2 | . . 2 Weapon 1 | . . 1 Highest Loss Streak 2 | . 1 2 To Critical Strikes 1 | . . 1 Average Backups 10 | 2 7 11 Power 1 | . 1 1 Propulsion 1 | 1 2 1 Utility 4 | . 1 4 Weapon 3 | . 2 4 Tool/Special . | . . . Unused Backups 18 | . 3 15 Power 2 | . 1 1 Propulsion . | . . . Utility 8 | . 1 7 Weapon 7 | . 1 6 Tool/Special 1 | . . 1 Average Slot Usage (%) 96 | . 90 98 Engine 13 | . 13 13 Treads 16 | . 28 12 Leg 7 | . . 9 Wheel 3 | . . 4 Storage 14 | . 14 14 Processor 5 | . . 7 Protection 6 | . 7 6 Energy Gun 5 | . 12 3 Ballistic Gun 15 | . 13 16 Slashing Weapon 5 | . . 6 Peak Build Rating 23 | 6 8 23 Average Rating 12 | 4 6 15 On Entrance 4 | . 6 8 Naked Turns . | . . . Heaviest Build 33 | 14 30 33 Greatest Support 40 | 40 40 40 Greatest Overweight (x) 3 | . . 3 Average Overweight (x) . | . . . Largest Inventory Capacity 15 | 8 15 15 Average Capacity 13 | 6 11 15 Most Carried 15 | 4 12 15 Average Carried 12 | 2 7 14 Final Capacity 15 | 8 15 15 Final Carried 15 | 4 11 15 Class Distribution -------------------- 89% | Mutant 10% | Derelict-Mutant Dominant Class ---------------- Mutant | -10/Materials Mutant | -10/Subcaves Resources | -11 -10 -10 ----------- Run | Yrd Mat Sub Matter Collected 879 | 181 279 419 Remotely . | . . . Salvage Created 922 | . 479 443 Parts 52 | . 29 23 Haulers Intercepted 2 | . 2 . Recyclers Shooed . | . . . Parts Field Recycled . | . . . Retrieved Matter . | . . . Parts Self-Destructed 4 | . . 4 Prevented . | . . . Kills | -11 -10 -10 ------- Run | Yrd Mat Sub Combat Hostiles Destroyed 22 | . 10 12 Guns 21 | . 10 11 Classes Destroyed 6 | . 4 2 Hauler 2 | . 2 . Watcher 3 | . 3 . Swarmer 4 | . 3 1 Grunt 7 | . 7 . Sentry 1 | . . 1 Subdweller 10 | . . 10 Best Kill Streak 2 | . 2 2 Combat Bots Only 2 | . 2 2 Max Kills in Single Turn 2 | . 1 2 Gunslinging 1 | . . 1 Exploded . | . . . Melee . | . . . Uniques/NPCs Destroyed . | . . . Combat | -11 -10 -10 -------- Run | Yrd Mat Sub Hostile Shots Fired 152 | . 54 98 Missed 43 | . 17 26 Hits 109 | . 37 72 Projectile 109 | . 37 72 Critical Strikes 4 | . 1 3 Damage Taken 1573 | . 335 1238 Core 256 | . 68 188 Absorbed by Shields . | . . . Redirected to Shielding 54 | . 8 46 Ignored by Resistances 434 | . 102 332 Core Remaining (%) 100 | 100 . . Volleys Fired 102 | . 45 57 Largest 2 | . 2 2 Hottest 105 | . 70 105 Shots Fired 185 | . 76 109 Gun 166 | . 76 90 Cannon . | . . . Launcher . | . . . Special 19 | . . 19 Kinetic 118 | . 45 73 Thermal 67 | . 31 36 Explosive . | . . . Electromagnetic . | . . . Robot Hit Streak 25 | . 25 22 Robot Miss Streak 3 | . 2 3 Penetration Max . | . . . Secondary Targets 4 | . 1 3 Max Gunslinging Chain 1 | . 1 1 Shots Hit Robots 157 | . 61 96 Core Hits 56 | . 26 30 Critical Kills 1 | . . 1 Critical Parts Destroyed . | . . . Critical Strikes 11 | . 4 7 Burn 10 | . 4 6 Destroy 1 | . . 1 Melee Attacks 33 | . . 33 Impact . | . . . Slashing 33 | . . 33 Piercing . | . . . Sneak Attacks . | . . . Combat Hostiles . | . . . Follow-up Attacks . | . . . Damage Inflicted 1940 | . 760 1180 Guns 1765 | . 760 1005 Cannons . | . . . Explosions . | . . . Melee . | . . . Ramming . | . . . Kinetic 1288 | . 410 878 Thermal 652 | . 350 302 Explosive . | . . . Electromagnetic . | . . . Impact . | . . . Slashing . | . . . Piercing . | . . . Highest Corruption . | . . . Average Corruption . | . . . Corruption Purged . | . . . Corruption Blocked . | . . . Overload Shots . | . . . Overflow Damage . | . . . Projectiles . | . . . Explosions . | . . . Melee . | . . . Knockbacks . | . . . Impact . | . . . Kinetic . | . . . Secondary . | . . . Self-Inflicted Damage . | . . . Shots . | . . . Rammed . | . . . Targets Rammed . | . . . Kicked . | . . . Crushed . | . . . Highest Temperature 117 | . 117 5 Average Temperature 39 | . 40 2 Received Heat Transfer 402 | . 201 201 Siege Activations . | . . . Martial Activations . | . . . Shielding Activations . | . . . Robots Disrupted . | . . . Combat Hostiles . | . . . Robots Corrupted . | . . . Combat Hostiles . | . . . Parts Fried . | . . . Impact Corruptions . | . . . Robots Melted 1 | . . 1 Combat Hostiles 1 | . . 1 Parts Melted 5 | . 5 . Heat Transferred 3684 | . 1332 2352 Parts Sabotaged . | . . . Parts Stolen . | . . . Parts Stripped . | . . . Power Chain Reactions . | . . . Alert | -11 -10 -10 ------- Run | Yrd Mat Sub Maximum Alert Level . | . . . Low Security (%) 100 | 100 100 . Level 1 . | . . . Level 2 . | . . . Level 3 . | . . . Level 4 . | . . . Level 5 . | . . . High Security . | . . . Max Security . | . . . Peak Influence 80 | . 80 . Initial . | . . . Average 14 | . 15 . Influence Increases 386 | . 346 40 Destroy 0b10 Robot/C 240 | . 200 40 Destroy 0b10 Robot/NC 25 | . 25 . Destroy Leader 50 | . 50 . Successful Hack 10 | . 10 . Destroy Structure 1 | . 1 . Lose Combat Pursuer 60 | . 60 . Influence Decreases 386 | . 346 40 Time Decay 386 | . 346 40 Squads Dispatched 2 | . 2 . Investigation 2 | . 2 . Extermination . | . . . Reinforcement . | . . . Assault . | . . . Garrison . | . . . Intercept . | . . . Searches Triggered . | . . . Construction Impeded . | . . . Haulers Reinforced . | . . . Active Scanning Responses . | . . . Cargo Convoy Interrupts . | . . . Stealth | -11 -10 -10 --------- Run | Yrd Mat Sub Distress Signals . | . . . Communications Jammed . | . . . Distress Signals . | . . . Times Spotted 31 | . 16 15 Peak Tracking Total 2 | . 2 2 Tactical Retreats 3 | . 3 . Traps | -11 -10 -10 ------- Run | Yrd Mat Sub Traps Triggered 6 | . 4 2 Indirectly . | . . . Trap Hack Attempts . | . . . Triggered . | . . . Disarmed . | . . . Reprogrammed . | . . . Reused . | . . . Traps Extracted . | . . . Installed . | . . . Triggered . | . . . Machines | -11 -10 -10 ---------- Run | Yrd Mat Sub Machines Disabled 1 | . . 1 Max in Single Turn 1 | . . 1 Machines Repaired . | . . . Machines Dismantled . | . . . Machines Sabotaged . | . . . Overloaded Fab Kills . | . . . Hacking | -11 -10 -10 --------- Run | Yrd Mat Sub Machines Accessed 8 | . 6 2 Terminals 6 | . 6 . Fabricators . | . . . Repair Stations . | . . . Recycling Units . | . . . Scanalyzers . | . . . Garrison Access . | . . . Total Hacks 22 | . 16 6 Successful 15 | . 9 6 Failed 7 | . 7 . Catastrophic 1 | . 1 . Database Lockouts . | . . . Manual 1 | . 1 . Terminals 16 | . 16 . Fabricators . | . . . Repair Stations . | . . . Recycling Units . | . . . Scanalyzers . | . . . Garrison Access . | . . . Terminal Hacks 15 | . 9 6 Record 5 | . . 5 Prototype ID Bank 2 | . 2 . Branch Access Points 1 | . 1 . Hauler Manifests 2 | . 2 . Registered Components 1 | . 1 . Zone Layout 3 | . 3 . Proto ID Catalog 1 | . . 1 Fabricator Hacks . | . . . Repair Station Hacks . | . . . Recycling Unit Hacks . | . . . Scanalyzer . | . . . Garrison Access Hacks . | . . . Unauthorized Hacks . | . . . Terminals . | . . . Fabricators . | . . . Repair Stations . | . . . Recycling Units . | . . . Scanalyzers . | . . . Garrison Access . | . . . Data Cores Recovered . | . . . Used . | . . . Hacking Detections 3 | . 3 . Full Trace Events . | . . . Feedback Events . | . . . Feedback Blocked . | . . . Robot Schematics Acquired . | . . . Robots Built . | . . . Authchips . | . . . Time . | . . . Total Robot Build Rating . | . . . Part Schematics Acquired . | . . . Parts Built . | . . . Authchips . | . . . Time . | . . . Total Part Build Rating . | . . . Parts Repaired . | . . . Time . | . . . Parts Recycled . | . . . Recycled Matter . | . . . Retrieved Matter . | . . . Retrieved Components . | . . . Parts Scanalyzed . | . . . Part Schematics Acquired . | . . . Parts Damaged . | . . . Bothacking | -11 -10 -10 ------------ Run | Yrd Mat Sub Used RIF Installer . | . . . Robots Hacked . | . . . Non-combat . | . . . Combat . | . . . Robot Hacks Applied . | . . . Relay Couplers Released . | . . . Fabnet Peak Effective % . | . . . Robots Rewired . | . . . Allies Hacked . | . . . Hacks Repelled . | . . . Allies | -11 -10 -10 -------- Run | Yrd Mat Sub Total Allies . | . . . Largest Group . | . . . Highest-Rated Group . | . . . Highest-Rated Ally . | . . . Total Orders . | . . . Ally Attacks . | . . . Total Damage . | . . . Kills . | . . . Allies Corrupted . | . . . Allies Melted . | . . . Intel | -11 -10 -10 ------- Run | Yrd Mat Sub Active Infowar (turns) . | . . . Robot Analysis Total . | . . . Derelict Logs Recovered 2 | . . 2 Drone Launches . | . . . Drone Recoveries . | . . . Exploration | -11 -10 -10 ------------- Run | Yrd Mat Sub Turns Passed 5081 | 84 1255 3742 Spaces Moved 2438 | 48 677 1713 Core 7 | 7 . . Treads 1793 | 41 677 1075 Legs 203 | . . 203 Wheels 435 | . . 435 Hover . | . . . Flight . | . . . Fastest Speed 50 | 50 160 120 Average Speed 187 | 143 160 199 Slowest Speed 330 | 160 160 330 Overloaded Moves . | . . . Propulsion Burnouts . | . . . Robots Hopped . | . . . Potential Cave-ins 9 | . . 9 Cave-ins Triggered . | . . . Exploration Rate (%) 64 | 4 97 92 Regions Visited 2 Branch Regions 1 Pre-discovered Areas 1 | . . 1 Known Exits Taken . | . . . Unknown Exits Taken 2 | 1 1 . Scrap Searched 9 | . . 9 Spaces Dug 18 | . . 18 Terrain Destroyed 19 | . . 19 Melee 18 | . . 18 Projectile 1 | . . 1 AOE . | . . . Terrain Rammed . | . . . Walls Destroyed . | . . . Machines Disabled . | . . . Actions | -11 -10 -10 --------- Run | Yrd Mat Sub Total 2699 | 63 775 1861 Wait 27 | . 27 . Move 2436 | 47 676 1713 Hop . | . . . Pick Up 44 | 10 15 19 Fast Attach 4 | . . 4 Attach 17 | 6 5 6 Detach . | . . . Swap 15 | . 2 13 Drop 21 | . 5 16 Fire 102 | . 45 57 Melee 33 | . . 33 Ram . | . . . Kick . | . . . Crush . | . . . Escape Stasis . | . . . Rewire . | . . . Trap . | . . . Miscellaneous . | . . . Route ------- -11/Scrapyard -10/Materials (discovered 6 exits: [*Mat x3] / *Min x2 / *Sub) -10/Subcaves (discovered 3 exits: *Mat x2 / Rec) History --------- Turn | Location | Event 16 | -11/Scrapyard | Discovered new exit (range 16) 85 | -11/Scrapyard | Entered Materials 314 | -10/Materials | Build established: Mutant 396 | -10/Materials | Discovered new exit (range 16) 762 | -10/Materials | Discovered new exit (range 16) 785 | -10/Materials | Derelicts attacked the area 916 | -10/Materials | Discovered new exit (range 7) 1056 | -10/Materials | Discovered new exit (range 10) 1134 | -10/Materials | Discovered new exit (range 7) 1245 | -10/Materials | Identified exit to Mines 1332 | -10/Materials | Discovered new exit (range 6) 1340 | -10/Materials | Entered Subcaves 1344 | -10/Subcaves | Identified exit to Recycling 1362 | -10/Subcaves | Shifting Twisted Machinery released Sub. Beam Cannon 1367 | -10/Subcaves | Shifting Twisted Machinery released Enh. Flamer 2240 | -10/Subcaves | Identified exit to Materials 2273 | -10/Subcaves | Visited 4L-MR0's lab 2295 | -10/Subcaves | Found Tower Shield 2518 | -10/Subcaves | Core integrity fell below 50% 3613 | -10/Subcaves | Discovered exit to Materials (range 11) 3716 | -10/Subcaves | Visited Clippyterm 3724 | -10/Subcaves | Learned location of Deep Caves (-6) 3724 | -10/Subcaves | Learned Factory trap positions 3879 | -10/Subcaves | Core integrity fell below 20% 4081 | -10/Subcaves | Shifting Twisted Machinery released Sub. Machine Gun 4085 | -10/Subcaves | Shifting Twisted Machinery released Sub. Shrapnel Launcher 4774 | -10/Subcaves | Disturbed a concealed Subdweller 5070 | -10/Subcaves | A Subdweller sparked back to life 5070 | -10/Subcaves | A Subdweller sparked back to life 5080 | -10/Subcaves | A Subdweller sparked back to life 5082 | -10/Subcaves | Destroyed by ER-H5W(R) with Subdweller Beam Cannon Last Messages --------------- Found Sub. Beam Cannon. Found 32 Matter. Acquired Sub. Laser. Dropped Barrage Gun. Acquired Sub. Beam Cannon. Subatomizers dissect the Battle Rifle. Acquired 10 matter. Subatomizers dissect the Barrage Gun. FN-CF7(u) tweaks Twisted Machinery. 7X-8KD(R) creaks and sparks as it begins to move. 3N-7C2(R) creaks and sparks as it begins to move. FN-CF7(u) tweaks Twisted Machinery. 3N-7C2(R) destroyed. Switching to secondary target: 7X-8KD(R). Mak. Power Source destroyed. ER-H5W(R) creaks and sparks as it begins to move. Aluminum Leg destroyed. Map ----- +----------------------------------------------------+ | ##????????????????## ####??????????# # | | #???????????????## #### ##?????????# | | ##??????????????# ##?# ##????????# | | #??????????????## #??## #????????# # | | %#??????????????## ##### ##????????##### | | %##?????????????# #???????????## | | #?????????????# % #??????????## # | | #?????????????## #?????????## ### | | ##??????????????# % ## ##?######### ##?? | | ###???????????????# ######?## # #??? | | ?????????????????## ####??????# ##??? | | ?????????????????# #####???### ###???? | | ?????????????????## ##??# #####?????? | | ??????????????????# ##?## #?????????? | | #?????????????????# #?## "####?????????? | | #?????????????????## # ### "#????????????? | | ???????????????????## ## ""#????????????? | | ????????????????????## u """#????????????? | | ????????????????????## ## # ""##????????????? | | ????????????????????# # < """##?????????????? | | ###?????????????????# & <#""" #??????????????? | | #?????????????????# <& "##""" #??????????????? | | ##?????????????????# R%&""## " #??????????????? | | #??????????????????# *]] ## ?????????????? | | #??????????????????## < #### "????????????? | | ##???????????????????## @ R## ????????????? | | ??????????????????????# #### ???????????? | | ??????????????????????# ### ### #??????????? | | ########?????????????## ### #???# ????????????? | | # #????????????## ## #??????????????????? | | #????????????# ## ##?????????????????? | | #?????###?????# ### ##????????????????? | | ##?????# ####??## ### ##???? ?????????? | | ##????## ##### #???# ????????? | | #??### ## #####???# ???##??? | | #### ## #???????# ??#"### | | ## #??????? #?#"" # | | #?## ##???????? "##" | | #### ##???????????#"""## | | ## ## # #????????????#"" " | | ### ## #????????????#" ##### | | ###### ## ##?????????? "" ????# | | ##### ## #>????????? ?????# | | # ## ##???????? ?????? | | ### ### #??????? ??????? | | ###### ###?# # #???????### ????#?? | | ?????# ##### #?????????# ????## ? | | #????## # #####?????? ???##" # | | #####????## ### #?????# ???##""" | | ???????### ###?## #?????# ???# " | +----------------------------------------------------+ Best States ------------- Heat Dissipation 25 Energy Generation 15 Energy Capacity 250 Matter Stores 300 Matter Capacity 300 Sight Range 16 Terrain Scan Density 10 Armor Coverage 100 Resistance: KI 20 Resistance: TH 20 Resistance: EX 20 Resistance: EM 20 Resistance: I 20 Resistance: S 20 Resistance: P 20 Propulsion Shielding 33 Evasion (%) 40 Targeting Accuracy 5 Recoil Reduction 2 Offensive Hacking 10 Item Schematics ----------------- None Robot Schematics ------------------ None Fabricated ------------ Nothing Repaired ---------- Nothing Alien Tech Used ----------------- None Achievements -------------- None Challenges ------------ None Game ------ Seed SeismicWarlordCutter Manual? 0 Play Time 00:23:54 Cumulative 91.4 hours Start 2025.08.01 @ 07:15:48 End 2025.08.01 @ 07:38:14 Sessions 1 Manual Loads 0 Difficulty Adventurer Special Mode None Game No. 127 Rogue 13 Adventurer 114 Explorer 0 Win Type - Total 0 Types 0/0/0/0/0/0/0/0/0/0 Lore% 67 Gallery% 60 Achievement% 46 Wizard Run 0 Options --------- Layout 1 ASCII 0 Keyboard 0 Movement Mouse Keybinds 0 Fullscreen 1 Font 32/SmallcapsGlow Map View 50x35 Zoom Use 0% Tactical HUD 0 Map Filters NONE Filters NONE Steam 1 RUN: d1028ff5-1b98-48d8-a8f1-e28257d3481e